fUST/lending_fUST_20250929
["ID","MTS","AMOUNT","RATE_DAILY","PERIOD"]
[388381431,1759138263871,-740.3,0.00027945,7]
[388381432,1759138263882,-480.0,0.00027945,7]
[388381433,1759138263892,-480.0,0.00027945,7]
[388381434,1759138263905,-349.72463355,0.00027945,7]
[388381435,1759138263916,-789.95,0.00027945,7]
[388381436,1759138263927,-480.0,0.00027945,7]
[388381437,1759138263940,-823.82,0.00027945,7]
[388381438,1759138263951,-943.11,0.00027945,7]
[388381439,1759138263961,-634.52,0.00027945,7]
[388381440,1759138263971,-480.0,0.00027945,7]
[388381441,1759138263980,-480.0,0.00027945,7]
[388381442,1759138263991,-480.0,0.00027945,7]
[388381443,1759138264000,-605.02,0.00027945,7]
[388381444,1759138264011,-257.92269857,0.00027945,7]
[388381445,1759138264023,-480.0,0.00027945,7]
[388381446,1759138264032,-480.0,0.00027945,7]
[388381447,1759138264043,-480.0,0.00027945,7]
[388381448,1759138264053,-551.42,0.00027945,7]
[388381449,1759138264068,-480.0,0.00027945,7]
[388381450,1759138264079,-480.0,0.00027945,7]
[388381451,1759138264089,-480.0,0.00027945,7]
[388381452,1759138264099,-480.0,0.00027945,7]
[388381453,1759138264113,-480.0,0.00027945,7]
[388381454,1759138264123,-480.0,0.00027945,7]
[388381455,1759138264132,-480.0,0.00027945,7]
[388381456,1759138264145,-579.57403187,0.00027945,7]
[388381457,1759138264154,-480.0,0.00027945,7]
[388381458,1759138264165,-480.0,0.00027945,7]
[388381459,1759138264174,-480.0,0.00027945,7]
[388381460,1759138264184,-926.52,0.00027945,7]
[388381461,1759138264194,-673.17,0.00027945,7]
[388381462,1759138264204,-480.0,0.00027945,7]
[388381463,1759138264214,-522.8,0.00027945,7]
[388381464,1759138264223,-480.0,0.00027945,7]
[388381465,1759138264233,-480.0,0.00027945,7]
[388381466,1759138264243,-649.72,0.00027945,7]
[388381467,1759138264253,-480.84687501,0.00027945,7]
[388381468,1759138264263,-480.0,0.00027945,7]
[388381469,1759138264273,-980.92,0.00027945,7]
[388381470,1759138264284,-480.0,0.00027945,7]
[388381471,1759138264294,-480.0,0.00027945,7]
[388381472,1759138264303,-480.0,0.00027945,7]
[388381473,1759138264312,-502.6,0.00027945,7]
[388381474,1759138264322,-735.71,0.00027945,7]
[388381475,1759138264331,-711.88,0.00027945,7]
[388381476,1759138264340,-480.0,0.00027945,7]
[388381477,1759138264350,-480.0,0.00027945,7]
[388381478,1759138264360,-502.45,0.00027945,7]
[388381479,1759138264369,-480.0,0.00027945,7]
[388381480,1759138264503,-592.04,0.00027945,7]
[388381481,1759138264513,-480.0,0.00027945,7]
[388381482,1759138264523,-480.0,0.00027945,7]
[388381483,1759138264532,-480.0,0.00027945,7]
[388381484,1759138264545,-480.0,0.00027945,7]
[388381485,1759138264554,-1846.64,0.00027945,7]
[388381486,1759138264563,-480.0,0.00027945,7]
[388381487,1759138264572,-546.39,0.00027945,7]
[388381488,1759138264582,-480.0,0.00027945,7]
[388381489,1759138264591,-468.03272221,0.00027945,7]
[388381490,1759138264601,-480.0,0.00027945,7]
[388381491,1759138264611,-480.0,0.00027945,7]
[388381492,1759138264621,-829.51,0.00027945,7]
[388381493,1759138264630,-480.0,0.00027945,7]
[388381494,1759138264640,-1511.8,0.00027945,7]
[388381495,1759138264649,-480.0,0.00027945,7]
[388381496,1759138264658,-753.09,0.00027945,7]
[388381497,1759138264668,-480.0,0.00027945,7]
[388381498,1759138264677,-480.0,0.00027945,7]
[388381499,1759138264687,-500.0,0.00027945,7]
[388381500,1759138264696,-480.0,0.00027945,7]
[388381501,1759138264705,-481.57174167,0.00027945,7]
[388381502,1759138264715,-653.25,0.00027945,7]
[388381503,1759138264724,-500.0,0.00027945,7]
[388381504,1759138264734,-480.0,0.00027945,7]
[388381505,1759138264743,-480.0,0.00027945,7]
[388381506,1759138264753,-583.5,0.00027945,7]
[388381507,1759138264762,-480.0,0.00027945,7]
[388381508,1759138264772,-480.0,0.00027945,7]
[388381509,1759138264781,-539.25905927,0.00027945,7]
[388381510,1759138264791,-511.12,0.00027945,7]
[388381511,1759138264800,-480.0,0.00027945,7]
[388381512,1759138264809,-583.21,0.00027945,7]
[388381513,1759138264819,-558.6,0.00027945,7]
[388381514,1759138264828,-480.0,0.00027945,7]
[388381515,1759138264838,-601.42244226,0.00027945,7]
[388381516,1759138264848,-480.0,0.00027945,7]
[388381517,1759138264857,-830.73,0.00027945,7]
[388381518,1759138264867,-970.7,0.00027945,7]
[388381519,1759138264876,-478.14170649,0.00027945,7]
[388381520,1759138264886,-610.79,0.00027945,7]
[388381521,1759138264896,-480.0,0.00027945,7]
[388381522,1759138264906,-480.0,0.00027945,7]
[388381523,1759138264916,-805.93,0.00027945,7]
[388381524,1759138264925,-944.42,0.00027945,7]
[388381525,1759138264935,-3184.82,0.00027945,7]
[388381526,1759138264944,-480.0,0.00027945,7]
[388381527,1759138264954,-593.42,0.00027945,7]
[388381528,1759138264963,-481.47267589,0.00027945,7]
[388381529,1759138264973,-480.0,0.00027945,7]
[388381530,1759138264983,-1376.65,0.00027945,7]
[388381531,1759138264992,-680.74,0.00027945,7]
[388381532,1759138265001,-360.23164017,0.00027945,7]
[388381533,1759138265010,-480.0,0.00027945,7]
[388381534,1759138265019,-1015.79,0.00027945,7]
[388381535,1759138265028,-480.0,0.00027945,7]
[388381536,1759138265037,-480.0,0.00027945,7]
[388381537,1759138265045,-1819.12,0.00027945,7]
[388381538,1759138265055,-1099.25,0.00027945,7]
[388381539,1759138265067,-480.0,0.00027945,7]
[388381540,1759138265078,-1051.85,0.00027945,7]
[388381541,1759138265087,-480.0,0.00027945,7]
[388381542,1759138265096,-480.0,0.00027945,7]
[388381543,1759138265106,-480.0,0.00027945,7]
[388381544,1759138265117,-480.0,0.00027945,7]
[388381545,1759138265126,-531.84,0.00027945,7]
[388381546,1759138265136,-1080.8,0.00027945,7]
[388381547,1759138265145,-817.12,0.00027945,7]
[388381548,1759138265155,-592.46,0.00027945,7]
[388381549,1759138265164,-974.55,0.00027945,7]
[388381550,1759138265174,-805.49,0.00027945,7]
[388381551,1759138265183,-480.0,0.00027945,7]
[388381552,1759138265193,-480.0,0.00027945,7]
[388381553,1759138265202,-480.0,0.00027945,7]
[388381554,1759138265211,-571.04,0.00027945,7]
[388381555,1759138265221,-767.3,0.00027945,7]
[388381556,1759138265231,-893.21,0.00027945,7]
[388381557,1759138265240,-2970.42,0.00027945,7]
[388381558,1759138265249,-610.35,0.00027945,7]
[388381559,1759138265258,-591.15,0.00027945,7]
[388381560,1759138265267,-2236.08,0.00027945,7]
[388381561,1759138265277,-480.0,0.00027945,7]
[388381562,1759138265286,-480.0,0.00027945,7]
[388381563,1759138265295,-480.0,0.00027945,7]
[388381564,1759138265305,-480.0,0.00027945,7]
[388381565,1759138265314,-926.52,0.00027945,7]
[388381566,1759138265323,-564.03,0.00027945,7]
[388381567,1759138265332,-480.0,0.00027945,7]
[388381568,1759138265342,-480.0,0.00027945,7]
[388381569,1759138265351,-977.93,0.00027945,7]
[388381570,1759138265360,-1523.82,0.00027945,7]
[388381571,1759138265369,-480.0,0.00027945,7]
[388381572,1759138265378,-1098.47,0.00027945,7]
[388381573,1759138265387,-460.18967431,0.00027945,7]
[388381574,1759138265397,-480.0,0.00027945,7]
[388381575,1759138265406,-480.0,0.00027945,7]
[388381576,1759138265416,-480.0,0.00027945,7]
[388381577,1759138265425,-536.8,0.00027945,7]
[388381578,1759138265434,-543.41,0.00027945,7]
[388381579,1759138265444,-948.68,0.00027945,7]
[388381580,1759138265453,-480.0,0.00027945,7]
[388381581,1759138265462,-771.92,0.00027945,7]
[388381582,1759138265471,-785.53,0.00027945,7]
[388381583,1759138265480,-1117.74,0.00027945,7]
[388381584,1759138265491,-1547.89,0.00027945,7]
[388381585,1759138265499,-864.4,0.00027945,7]
[388381586,1759138265508,-481.38661276,0.00027945,7]
[388381587,1759138265518,-550.14,0.00027945,7]
[388381588,1759138265528,-495.43616252,0.00027945,7]
[388381589,1759138265537,-779.05,0.00027945,7]
[388381590,1759138265547,-480.0,0.00027945,7]
[388381591,1759138265556,-480.0,0.00027945,7]
[388381592,1759138265565,-480.0,0.00027945,7]
[388381593,1759138265575,-1973.98,0.00027945,7]
[388381594,1759138265584,-480.0,0.00027945,7]
[388381595,1759138265593,-480.0,0.00027945,7]
[388381596,1759138265603,-1427.44,0.00027945,7]
[388381597,1759138265612,-480.0,0.00027945,7]
[388381598,1759138265621,-954.8,0.00027945,7]
[388381599,1759138265631,-1540.07,0.00027945,7]
[388381600,1759138265640,-518.21598988,0.00027945,7]
[388381601,1759138265650,-480.0,0.00027945,7]
[388381602,1759138265660,-798.74,0.00027945,7]
[388381603,1759138265671,-859.73,0.00027945,7]
[388381604,1759138265680,-480.0,0.00027945,7]
[388381605,1759138265690,-480.0,0.00027945,7]
[388381606,1759138265700,-813.1,0.00027945,7]
[388381607,1759138265710,-556.47,0.00027945,7]
[388381608,1759138265720,-877.35,0.00027945,7]
[388381609,1759138265729,-480.0,0.00027945,7]
[388381610,1759138265738,-530.15,0.00027945,7]
[388381611,1759138265747,-169.63260729,0.00027945,7]
[388381612,1759138265755,-550.02,0.00027945,7]
[388381613,1759138265763,-480.0,0.00027945,7]
[388381614,1759138265771,-481.44,0.00027945,7]
[388381615,1759138265780,-1580.36,0.00027945,7]
[388381616,1759138265791,-883.52,0.00027945,7]
[388381617,1759138265800,-480.0,0.00027945,7]
[388381618,1759138265811,-849.11,0.00027945,7]
[388381619,1759138265820,-480.0,0.00027945,7]
[388381620,1759138265830,-694.56,0.00027945,7]
[388381621,1759138265840,-480.0,0.00027945,7]
[388381622,1759138265850,-480.0,0.00027945,7]
[388381623,1759138265858,-1386.42,0.00027945,7]
[388381624,1759138265866,-480.0,0.00027945,7]
[388381625,1759138265874,-480.0,0.00027945,7]
[388381626,1759138265882,-845.36,0.00027945,7]
[388381627,1759138265891,-2983.24,0.00027945,7]
[388381628,1759138265901,-480.0,0.00027945,7]
[388381629,1759138265909,-480.0,0.00027945,7]
[388381630,1759138265919,-604.50982546,0.00027945,7]
[388381631,1759138265927,-480.0,0.00027945,7]
[388381632,1759138265936,-903.85,0.00027945,7]
[388381633,1759138265945,-480.0,0.00027945,7]
[388381634,1759138265954,-837.91,0.00027945,7]
[388381635,1759138265963,-480.0,0.00027945,7]
[388381636,1759138265973,-589.27,0.00027945,7]
[388381637,1759138265982,-480.0,0.00027945,7]
[388381638,1759138265991,-480.0,0.00027945,7]
[388381639,1759138266000,-821.74,0.00027945,7]
[388381640,1759138266010,-480.0,0.00027945,7]
[388381641,1759138266020,-480.0,0.00027945,7]
[388381642,1759138266030,-860.7,0.00027945,7]
[388381643,1759138266041,-480.0,0.00027945,7]
[388381644,1759138266051,-480.0,0.00027945,7]
[388381645,1759138266064,-480.0,0.00027945,7]
[388381646,1759138266074,-892.52,0.00027945,7]
[388381647,1759138266083,-480.0,0.00027945,7]
[388381648,1759138266092,-480.0,0.00027945,7]
[388381649,1759138266102,-505.9,0.00027945,7]
[388381650,1759138266111,-480.0,0.00027945,7]
[388381651,1759138266120,-1017.61,0.00027945,7]
[388381652,1759138266130,-480.0,0.00027945,7]
[388381653,1759138266140,-541.85,0.00027945,7]
[388381654,1759138266149,-1197.94,0.00027945,7]
[388381655,1759138266159,-203.59,0.00027945,7]
[388381656,1759138266168,-480.0,0.00027945,7]
[388381657,1759138266177,-765.58,0.00027945,7]
[388381658,1759138266187,-480.0,0.00027945,7]
[388381659,1759138266196,-480.0,0.00027945,7]
[388381660,1759138266206,-480.0,0.00027945,7]
[388381661,1759138266215,-1104.12,0.00027945,7]
[388381662,1759138266225,-686.72,0.00027945,7]
[388381663,1759138266234,-480.0,0.00027945,7]
[388381664,1759138266244,-870.42,0.00027945,7]
[388381665,1759138266253,-1234.14,0.00027945,7]
[388381666,1759138266262,-728.03,0.00027945,7]
[388381667,1759138266271,-2740.82,0.00027945,7]
[388381668,1759138266281,-480.0,0.00027945,7]
[388381669,1759138266290,-749.19,0.00027945,7]
[388381670,1759138266301,-480.0,0.00027945,7]
[388381671,1759138266312,-1013.53,0.00027945,7]
[388381672,1759138266321,-480.0,0.00027945,7]
[388381673,1759138266331,-992.04,0.00027945,7]
[388381674,1759138266340,-480.0,0.00027945,7]
[388381675,1759138266349,-480.0,0.00027945,7]
[388381676,1759138266358,-480.0,0.00027945,7]
[388381677,1759138266368,-802.59,0.00027945,7]
[388381678,1759138266378,-480.0,0.00027945,7]
[388381679,1759138266387,-480.0,0.00027945,7]
[388381680,1759138266396,-1103.84,0.00027945,7]
[388381681,1759138266513,-480.0,0.00027945,7]
[388381682,1759138266532,-1567.07,0.00027945,7]
[388381683,1759138266542,-480.0,0.00027945,7]
[388381684,1759138266552,-480.0,0.00027945,7]
[388381685,1759138266562,-480.0,0.00027945,7]
[388381686,1759138266572,-668.18,0.00027945,7]
[388381687,1759138266581,-1278.68,0.00027945,7]
[388381688,1759138266591,-480.0,0.00027945,7]
[388381689,1759138266600,-494.51857176,0.00027945,7]
[388381690,1759138266609,-480.0,0.00027945,7]
[388381691,1759138266619,-480.0,0.00027945,7]
[388381692,1759138266628,-480.0,0.00027945,7]
[388381693,1759138266637,-617.63068873,0.00027945,7]
[388381694,1759138266647,-480.0,0.00027945,7]
[388381695,1759138266656,-480.0,0.00027945,7]
[388381696,1759138266667,-480.0,0.00027945,7]
[388381697,1759138266676,-480.0,0.00027945,7]
[388381698,1759138266686,-480.0,0.00027945,7]
[388381699,1759138266695,-521.31,0.00027945,7]
[388381700,1759138266704,-480.0,0.00027945,7]
[388381701,1759138266714,-749.45,0.00027945,7]
[388381702,1759138266723,-480.0,0.00027945,7]
[388381703,1759138266733,-813.07,0.00027945,7]
[388381704,1759138266742,-864.73,0.00027945,7]
[388381705,1759138266751,-812.19,0.00027945,7]
[388381706,1759138266761,-5231.52,0.00027945,7]
[388381707,1759138266771,-480.0,0.00027945,7]
[388381708,1759138266780,-733.36,0.00027945,7]
[388381709,1759138266789,-480.0,0.00027945,7]
[388381710,1759138266798,-2052.82,0.00027945,7]
[388381711,1759138266808,-1826.19,0.00027945,7]
[388381712,1759138266818,-480.0,0.00027945,7]
[388381713,1759138266828,-1564.98,0.00027945,7]
[388381714,1759138266838,-480.0,0.00027945,7]
[388381715,1759138266847,-480.0,0.00027945,7]
[388381716,1759138266856,-527.52,0.00027945,7]
[388381717,1759138266865,-480.0,0.00027945,7]
[388381718,1759138266874,-480.0,0.00027945,7]
[388381719,1759138266883,-480.0,0.00027945,7]
[388381720,1759138266892,-786.21,0.00027945,7]
[388381721,1759138266901,-711.47,0.00027945,7]
[388381722,1759138266911,-3665.95,0.00027945,7]
[388381723,1759138266921,-726.67,0.00027945,7]
[388381724,1759138266930,-480.0,0.00027945,7]
[388381725,1759138266940,-1212.48,0.00027945,7]
[388381726,1759138266950,-480.0,0.00027945,7]
[388381727,1759138266960,-480.0,0.00027945,7]
[388381728,1759138266969,-480.0,0.00027945,7]
[388381729,1759138266979,-480.0,0.00027945,7]
[388381730,1759138266988,-583.27183812,0.00027945,7]
[388381731,1759138266998,-480.0,0.00027945,7]
[388381732,1759138267007,-2712.06,0.00027945,7]
[388381733,1759138267017,-1883.77,0.00027945,7]
[388381734,1759138267026,-480.0,0.00027945,7]
[388381735,1759138267035,-480.0,0.00027945,7]
[388381736,1759138267044,-481.56382778,0.00027945,7]
[388381737,1759138267054,-721.5,0.00027945,7]
[388381738,1759138267065,-2142.96,0.00027945,7]
[388381739,1759138267075,-480.0,0.00027945,7]
[388381740,1759138267084,-528.27,0.00027945,7]
[388381741,1759138267094,-480.0,0.00027945,7]
[388381742,1759138267105,-790.29,0.00027945,7]
[388381743,1759138267114,-1205.65,0.00027945,7]
[388381744,1759138267123,-557.83,0.00027945,7]
[388381745,1759138267136,-480.0,0.00027945,7]
[388381746,1759138267147,-480.0,0.00027945,7]
[388381747,1759138267156,-480.0,0.00027945,7]
[388381748,1759138267167,-480.0,0.00027945,7]
[388381749,1759138267176,-480.0,0.00027945,7]
[388381750,1759138267185,-480.0,0.00027945,7]
[388381751,1759138267196,-949.03,0.00027945,7]
[388381752,1759138267205,-911.76,0.00027945,7]
[388381753,1759138267215,-1189.57,0.00027945,7]
[388381754,1759138267224,-585.19,0.00027945,7]
[388381755,1759138267234,-2102.49,0.00027945,7]
[388381756,1759138267244,-480.0,0.00027945,7]
[388381757,1759138267254,-480.0,0.00027945,7]
[388381758,1759138267264,-480.0,0.00027945,7]
[388381759,1759138267274,-848.40470665,0.00027945,7]
[388381760,1759138267584,-2569.89529335,0.00027945,7]
[388381761,1759138267595,-480.0,0.00027945,7]
[388381762,1759138267605,-603.75,0.00027945,7]
[388381763,1759138267615,-480.0,0.00027945,7]
[388381764,1759138267625,-1875.11,0.00027945,7]
[388381765,1759138267635,-879.25,0.00027945,7]
[388381766,1759138267644,-1856.71,0.00027945,7]
[388381767,1759138267654,-2414.31,0.00027945,7]
[388381768,1759138267663,-1034.45,0.00027945,7]
[388381769,1759138267673,-1586.8,0.00027945,7]
[388381770,1759138267682,-854.06,0.00027945,7]
[388381771,1759138267692,-772.28,0.00027945,7]
[388381772,1759138267701,-875.33,0.00027945,7]
[388381773,1759138267710,-626.0,0.00027945,7]
[388381774,1759138267719,-480.0,0.00027945,7]
[388381775,1759138267728,-480.0,0.00027945,7]
[388381776,1759138267737,-555.8,0.00027945,7]
[388381777,1759138267747,-523.15,0.00027945,7]
[388381778,1759138267756,-6642.05,0.00027945,3]
[388381779,1759138267765,-3809.93,0.00027945,7]
[388381780,1759138267775,-756.4,0.00027945,7]
[388381781,1759138267784,-480.0,0.00027945,7]
[388381782,1759138267795,-1640.84,0.00027945,7]
[388381783,1759138267804,-811.45,0.00027945,7]
[388381784,1759138267814,-1023.87,0.00027945,7]
[388381785,1759138267823,-1214.29,0.00027945,7]
[388381786,1759138267833,-1384.27,0.00027945,7]
[388381787,1759138267844,-480.0,0.00027945,7]
[388381788,1759138267853,-3267.08,0.00027945,7]
[388381789,1759138267863,-480.0,0.00027945,7]
[388381790,1759138267873,-3800.0,0.00027945,7]
[388381791,1759138267883,-669.99,0.00027945,7]
[388381792,1759138267893,-480.0,0.00027945,7]
[388381793,1759138267903,-480.0,0.00027945,7]
[388381794,1759138267913,-575.52,0.00027945,7]
[388381795,1759138267924,-419.22779601,0.00027945,7]
[388381796,1759138267934,-897.38,0.00027945,7]
[388381797,1759138267944,-480.0,0.00027945,7]
[388381798,1759138267953,-471.55374942,0.00027945,7]
[388381799,1759138267964,-1398.68,0.00027945,7]
[388381800,1759138267973,-588.87,0.00027945,7]
[388381801,1759138267983,-548.62,0.00027945,7]
[388381802,1759138267992,-4891.39,0.00027945,7]
[388381803,1759138268003,-480.0,0.00027945,7]
[388381804,1759138268012,-480.0,0.00027945,7]
[388381805,1759138268021,-643.05,0.00027945,7]
[388381806,1759138268031,-1071.56,0.00027945,7]
[388381807,1759138268180,-480.0,0.00027945,7]
[388381808,1759138268197,-1958.0,0.00027945,7]
[388381809,1759138268208,-759.34,0.00027945,7]
[388381810,1759138268217,-742.64,0.00027945,7]
[388381811,1759138268227,-750.52,0.00027945,7]
[388381812,1759138268236,-849.15,0.00027945,7]
[388381813,1759138268246,-8455.84,0.00027945,7]
[388381814,1759138268256,-480.0,0.00027945,7]
[388381815,1759138268266,-917.56,0.00027945,7]
[388381816,1759138268276,-480.0,0.00027945,7]
[388381817,1759138268286,-480.0,0.00027945,7]
[388381818,1759138268295,-480.0,0.00027945,7]
[388381819,1759138268305,-480.0,0.00027945,7]
[388381820,1759138268315,-480.0,0.00027945,7]
[388381821,1759138268324,-3670.78,0.00027945,7]
[388381822,1759138268335,-2648.62,0.00027945,7]
[388381823,1759138268345,-8536.49,0.00027945,7]
[388381824,1759138268354,-480.0,0.00027945,7]
[388381825,1759138268365,-737.21,0.00027945,7]
[388381826,1759138268375,-480.0,0.00027945,7]
[388381827,1759138268384,-480.0,0.00027945,7]
[388381828,1759138268393,-400.291874,0.00027945,7]
[388381829,1759138268403,-480.0,0.00027945,7]
[388381830,1759138268412,-949.7,0.00027945,7]
[388381831,1759138268423,-707.29,0.00027945,7]
[388381832,1759138268433,-480.0,0.00027945,7]
[388381833,1759138268443,-1624.12,0.00027945,7]
[388381834,1759138268454,-2461.93,0.00027945,7]
[388381835,1759138268463,-480.0,0.00027945,7]
[388381836,1759138268473,-758.55,0.00027945,7]
[388381837,1759138268484,-480.0,0.00027945,7]
[388381838,1759138268493,-480.0,0.00027945,7]
[388381839,1759138268503,-3874.46,0.00027945,7]
[388381840,1759138268513,-967.01,0.00027945,7]
[388381841,1759138268522,-4507.59,0.00027945,7]
[388381842,1759138268531,-480.0,0.00027945,7]
[388381843,1759138268541,-300.01605822,0.00027945,7]
[388381844,1759138268551,-480.0,0.00027945,7]
[388381845,1759138268561,-480.0,0.00027945,7]
[388381846,1759138268571,-1020.2,0.00027945,7]
[388381847,1759138268581,-480.0,0.00027945,7]
[388381848,1759138268591,-992.29,0.00027945,7]
[388381849,1759138268600,-480.0,0.00027945,7]
[388381850,1759138268609,-8421.93,0.00027945,7]
[388381851,1759138268618,-480.0,0.00027945,7]
[388381852,1759138268628,-480.0,0.00027945,7]
[388381853,1759138268638,-1275.47,0.00027945,7]
[388381854,1759138268648,-875.46,0.00027945,7]
[388381855,1759138268658,-1094.94,0.00027945,7]
[388381856,1759138268667,-480.0,0.00027945,7]
[388381857,1759138268677,-480.0,0.00027945,7]
[388381858,1759138268687,-812.06,0.00027945,7]
[388381859,1759138268697,-480.0,0.00027945,7]
[388381860,1759138268707,-2179.33,0.00027945,7]
[388381861,1759138268717,-480.0,0.00027945,7]
[388381862,1759138268727,-3117.52,0.00027945,7]
[388381863,1759138268737,-480.0,0.00027945,7]
[388381864,1759138268747,-1965.84,0.00027945,7]
[388381865,1759138268756,-809.33,0.00027945,7]
[388381866,1759138268766,-920.3,0.00027945,7]
[388381867,1759138268776,-299.62065293,0.00027945,7]
[388381868,1759138268786,-480.0,0.00027945,7]
[388381869,1759138268795,-219.61851054,0.00027945,7]
[388381870,1759138268805,-480.0,0.00027945,7]
[388381871,1759138268815,-480.0,0.00027945,7]
[388381872,1759138268824,-900.73,0.00027945,7]
[388381873,1759138268835,-7584.31,0.00027945,7]
[388381874,1759138268845,-480.0,0.00027945,7]
[388381875,1759138268855,-480.0,0.00027945,7]
[388381876,1759138268865,-657.66,0.00027945,7]
[388381877,1759138268876,-480.0,0.00027945,7]
[388381878,1759138268886,-922.56,0.00027945,7]
[388381879,1759138268896,-673.49,0.00027945,7]
[388381880,1759138268906,-873.85,0.00027945,7]
[388381881,1759138268917,-480.0,0.00027945,7]
[388381882,1759138268928,-480.0,0.00027945,7]
[388381883,1759138268938,-480.0,0.00027945,7]
[388381884,1759138268948,-568.8,0.00027945,7]
[388381885,1759138268958,-1266.62,0.00027945,7]
[388381886,1759138268968,-16054.66,0.00027945,7]
[388381887,1759138268978,-480.0,0.00027945,7]
[388381888,1759138268988,-1603.16,0.00027945,7]
[388381889,1759138268998,-480.0,0.00027945,7]
[388381890,1759138269008,-480.0,0.00027945,7]
[388381891,1759138269018,-1353.87,0.00027945,7]
[388381892,1759138269028,-4388.32,0.00027945,7]
[388381893,1759138269041,-2116.95,0.00027945,7]
[388381894,1759138269062,-480.0,0.00027945,7]
[388381895,1759138269082,-480.0,0.00027945,7]
[388381896,1759138269102,-480.0,0.00027945,7]
[388381897,1759138269122,-531.76,0.00027945,7]
[388381898,1759138269142,-3482.48,0.00027945,7]
[388381899,1759138269160,-480.0,0.00027945,7]
[388381900,1759138269180,-1494.37,0.00027945,7]
[388381901,1759138269195,-845.72,0.00027945,7]
[388381902,1759138269212,-692.05,0.00027945,7]
[388381903,1759138269233,-3859.95,0.00027945,7]
[388381904,1759138269252,-480.0,0.00027945,7]
[388381905,1759138269264,-480.0,0.00027945,7]
[388381906,1759138269284,-480.0,0.00027945,7]
[388381907,1759138269299,-250.0,0.00027945,5]
[388381908,1759138269315,-2119.99486602,0.00027951,2]
[388381909,1759138269329,-500.0,0.00027973,5]
[388381910,1759138269345,-150.0,0.00027973,5]
[388381911,1759138269363,-68269.85818626,0.00028,24]
[388381912,1759138269384,-1829.82479771,0.00028,24]
[388381913,1759138269400,-2565.17520229,0.00028,24]
[388381914,1759138269756,-151.0,0.00025566,7]
[388381915,1759138269772,-151.0,0.00026376,7]
[388381916,1759138269786,-151.0,0.00027,7]
[388381917,1759138269801,-2854.0,0.00027397,7]
[388381918,1759138269816,-532.84275469,0.00027397,7]
[388381919,1759138269832,-480.0,0.00027671,7]
[388381920,1759138269843,-2854.0,0.00027671,7]
[388381921,1759138269853,-480.0,0.00027945,7]
[388381922,1759138269863,-2854.0,0.00027945,7]
[388381923,1759138269872,-27335.14181374,0.00028,24]
[388381924,1759138269882,-1000.0,0.00028,2]
[388381925,1759138269891,-1000.0,0.00028,2]
[388381926,1759138269901,-1000.0,0.00028,2]
[388381927,1759138269911,-1000.0,0.00028,2]
[388381928,1759138269920,-1000.0,0.00028,2]
[388381929,1759138269930,-1000.0,0.00028,2]
[388381930,1759138269939,-1000.0,0.00028,2]